[Event "FIDE Women GP Shimkent 2024"]
[Site "Shimkent"]
[Date "2024.10.30"]
[Round "1.5"]
[White "Salimova, Nurgyul"]
[Black "Assaubayeva, Bibisara"]
[Result "0-1"]
[ECO "A31"]
[WhiteElo "2405"]
[BlackElo "2487"]
[Annotator "TA"]
[PlyCount "82"]
[EventDate "2024.10.11"]
[EventType "tourn"]
[EventCountry "KAZ"]
[SourceTitle "playchess.com"]
[Source "ChessBase"]
[SourceQuality "1"]
[TimeControl "40/5400+30:1800+30"]

{[%evp 12,82,30,36,35,20,2,8,28,24,8,24,27,34,46,30,34,-32,0,-7,0,0,0,-23,-22,-13,-20,-24,5,-27,-33,-55,-60,-67,-34,-34,-10,-120,-43,-95,-91,-95,-96,-100,-104,-107,-97,-110,-112,-108,-111,-114,-91,-249,-279,-300,-305,-297,-298,-332,-311,-319,-322,-329,-327,-462,-462,-464,-448,-577,-568,-536,-525]} 1. d4 {[%emt 0:00:01]} Nf6 {[%emt 0:00:07]} 2. Nf3 {[%emt 0:00:18]} g6 {[%emt 0:00:34]} 3. g3 {[%emt 0:00:42]} c5 {[%emt 0:01:13]} 4. Bg2 {[%emt 0:04:38]} Bg7 {[%emt 0:01:28]} 5. c4 {[%emt 0:03:54]} cxd4 {[%emt 0:00:15]} 6. Nxd4 {[%emt 0:00:55]} Nc6 {[%emt 0:00:41]} 7. O-O {[%emt 0:00:38]} h5 {[%emt 0:00:56]} 8. Nc3 {[%emt 0:09:56]} h4 {[%emt 0:00:29]} 9. c5 {[%emt 0:07:21]} hxg3 {[%emt 0:00:48] The position is equal.} 10. hxg3 {[%emt 0:00:13]} Rh5 {[%emt 0:00:59]} 11. Nb3 {[%emt 0:04:35]} d6 {[%emt 0:04:00]} 12. cxd6 {[%emt 0:02:25]} Bh3 {[%emt 0:00:31]} 13. Bxh3 {[%emt 0:08:55]} Rxh3 {[%emt 0:00:16] [#]} 14. d7+ {[%emt 0:20:21]} Nxd7 {[%emt 0:14:35]} (14... Qxd7 {simplifies} 15. Qxd7+ Nxd7 16. Kg2 Rh5) 15. Bf4 {[%emt 0:01:40]} Qc8 {[%emt 0:08:55]} 16. Kg2 {[%emt 0:03:24]} Nf6 {[%emt 0:06:59][%cal Og6g5]} 17. Rh1 {[%emt 0:10:50]} Rxh1 {[%emt 0:01:21]} 18. Qxh1 {[%emt 0:00:05]} Nh5 {[%emt 0:00:21]} 19. Be3 {[%emt 0:04:04]} Ne5 {[%emt 0:02:16][%cal Bc6e5,Be5c4,Bc4b2][%mdl 32]} 20. f3 {[%emt 0:06:53]} Nc4 {[%emt 0:04:20][%csl LRb2,LRe3]} 21. Bf2 {[%emt 0:00:06]} Nxb2 {[%emt 0:15:20]} 22. Ne4 {[%emt 0:00:35]} Qe6 {[%emt 0:04:06]} 23. Rc1 {[%emt 0:01:46]} b6 {[%emt 0:05:33]} 24. Qh4 {[%emt 0:02:59] [#]} (24. Bd4 $11 {keeps the balance.} Bxd4 25. Nxd4) 24... Rc8 {[%emt 0:02:42]} (24... Rd8 $1 $17 25. Qg5 f5) 25. Rxc8+ {[%emt 0:02:05]} (25. Nd4 $15 Qd7 (25... Qxa2 26. Rxc8+ Kd7 27. Rc7+ Kxc7 28. Qxe7+ Kb8 29. Nd6) 26. Rxc8+ Qxc8 27. Qg5) 25... Qxc8 $17 {[%emt 0:02:06]} 26. Qg5 {[%emt 0:00:06]} Nf6 {[%emt 0:04:09]} 27. Nxf6+ {[%emt 0:02:20]} Bxf6 {[%emt 0:00:08]} 28. Qd5 {[%emt 0:00:39]} Kf8 {[%emt 0:05:44]} 29. Nd4 {[%emt 0:00:37]} Qc4 {[%emt 0:02:24]} 30. Qxc4 {[%emt 0:01:50]} Nxc4 {[%emt 0:00:02][%mdl 4096] Endgame. KBN-KBN} 31. Nb5 {[%emt 0:00:22]} a5 {[%emt 0:00:41]} 32. a4 $2 {[%emt 0:00:26] White does not recover from this.} (32. f4 $17 {keeps fighting.}) 32... Ke8 $19 {[%emt 0:01:27]} 33. f4 {[%emt 0:00:04]} Kd7 {[%emt 0:00:45]} 34. e4 {[%emt 0:00:37]} e6 {[%emt 0:01:59]} 35. e5 {[%emt 0:00:10]} Be7 {[%emt 0:02:24]} 36. Kf3 {[%emt 0:00:28]} Kc6 {[%emt 0:00:20]} 37. Bd4 {[%emt 0:01:00]} Kd5 {[%emt 0:04:32]} 38. Bf2 {[%emt 0:00:38]} (38. g4 $142) 38... Bc5 {[%emt 0:01:25] Black is clearly winning.} 39. Be1 {[%emt 0:00:51]} Nb2 {[%emt 0:00:33]} 40. Nc3+ {[%emt 0:00:05]} Kc6 {[%emt 0:00:33]} 41. Ne4 {[%emt 0:02:45]} Be7 {[%emt 0:00:22] Weighted Error Value: White=0.24 (precise) /Black=0.10 (very precise) .  Mistake:       	White=5     	Black=1      Inaccurate:     	White=1     	Black=3      OK:         	White=14    	Black=16     Best:        	---       	Black=2} 0-1